fUST/lending_fUST_20240722
["ID","MTS","AMOUNT","RATE_DAILY","PERIOD"]
[332878492,1721614251778,-951.10916369,0.00015952,2]
[332878493,1721614251790,-154.80649189,0.00015952,2]
[332878494,1721614251804,-400.0,0.0001599,2]
[332878495,1721614251816,-3000.0,0.00016,2]
[332878496,1721614251829,-1000.0,0.00016,2]
[332878497,1721614251839,-378.8357213,0.00016001,2]
[332878498,1721614251852,-3000.0,0.0001601,2]
[332878499,1721614251864,-3000.0,0.0001602,2]
[332878500,1721614251876,-3000.0,0.0001603,2]
[332878501,1721614251889,-531.29167136,0.00016038,2]
[332878502,1721614251901,-284.78441966,0.00016038,2]
[332878503,1721614251914,-172.89590663,0.00016038,2]
[332878504,1721614251926,-233.42277624,0.00016038,2]
[332878505,1721614251939,-403.29212142,0.00016038,2]
[332878506,1721614251951,-152.42814,0.00016038,2]
[332878507,1721614251962,-3000.0,0.0001604,2]
[332878508,1721614251974,-300.5304923,0.00016046,2]
[332878509,1721614251985,-3000.0,0.0001605,2]
[332878510,1721614251998,-151.32587,0.0001606,2]
[332878511,1721614252009,-3000.0,0.0001606,2]
[332878512,1721614252020,-531.56436203,0.00016062,2]
[332878513,1721614252031,-151.0,0.00016064,2]
[332878514,1721614252042,-151.0,0.00016064,2]
[332878515,1721614252052,-3000.0,0.0001607,2]
[332878516,1721614252063,-3000.0,0.0001608,2]
[332878517,1721614252074,-3000.0,0.0001609,2]
[332878518,1721614252085,-526.84583493,0.00016095,2]
[332878519,1721614252096,-154.80649189,0.00016095,2]
[332878520,1721614252107,-526.84583493,0.00016095,2]
[332878521,1721614252117,-397.25645957,0.00016095,2]
[332878522,1721614252128,-3000.0,0.000161,2]
[332878523,1721614252139,-342.23440351,0.0001611,2]
[332878524,1721614252149,-778.8042113,0.0001611,2]
[332878525,1721614252160,-519.01388481,0.0001611,2]
[332878526,1721614252171,-154.80649189,0.0001611,2]
[332878527,1721614252182,-196.25173321,0.0001611,2]
[332878528,1721614252192,-298.47911728,0.0001611,2]
[332878529,1721614252203,-3000.0,0.0001611,2]
[332878530,1721614252215,-3000.0,0.0001612,2]
[332878531,1721614252226,-3000.0,0.0001613,2]
[332878532,1721614252237,-3000.0,0.0001614,2]
[332878533,1721614252247,-3000.0,0.0001615,2]
[332878534,1721614252258,-229.1659077,0.00016159,2]
[332878535,1721614252271,-791.59820514,0.00016159,2]
[332878536,1721614252281,-3000.0,0.0001616,2]
[332878537,1721614252292,-500.0,0.00016164,2]
[332878538,1721614252303,-500.0,0.00016164,2]
[332878539,1721614252314,-500.0,0.00016164,2]
[332878540,1721614252325,-683.88,0.00016164,2]
[332878541,1721614252337,-2306.83,0.00016164,2]
[332878542,1721614252349,-500.0,0.00016164,2]
[332878543,1721614252359,-500.0,0.00016164,2]
[332878544,1721614252371,-500.0,0.00016164,2]
[332878545,1721614252383,-500.0,0.00016164,2]
[332878546,1721614252394,-500.0,0.00016164,2]
[332878547,1721614252405,-500.0,0.00016164,2]
[332878548,1721614252416,-547.12872702,0.00016164,2]
[332878549,1721614252427,-500.0,0.00016164,2]
[332878550,1721614252437,-539.84,0.00016164,2]
[332878551,1721614252447,-2033.74,0.00016164,2]
[332878552,1721614252459,-500.0,0.00016164,2]
[332878553,1721614252470,-500.0,0.00016164,2]
[332878554,1721614252481,-500.0,0.00016164,2]
[332878555,1721614252492,-500.0,0.00016164,2]
[332878556,1721614252504,-1177.69,0.00016164,2]
[332878557,1721614252515,-735.43,0.00016164,2]
[332878558,1721614252526,-554.94,0.00016164,2]
[332878559,1721614252537,-500.0,0.00016164,2]
[332878560,1721614252547,-549.02,0.00016164,2]
[332878561,1721614252558,-685.82,0.00016164,2]
[332878562,1721614252570,-575.57,0.00016164,2]
[332878563,1721614252581,-1031.38,0.00016164,2]
[332878564,1721614252594,-500.0,0.00016164,2]
[332878565,1721614252605,-500.0,0.00016164,2]
[332878566,1721614252618,-714.38,0.00016164,2]
[332878567,1721614252630,-500.0,0.00016164,2]
[332878568,1721614252642,-500.0,0.00016164,2]
[332878569,1721614252653,-505.12,0.00016164,2]
[332878570,1721614252665,-1365.28,0.00016164,2]
[332878571,1721614252675,-500.0,0.00016164,2]
[332878572,1721614252686,-647.07,0.00016164,2]
[332878573,1721614252696,-589.48,0.00016164,2]
[332878574,1721614252709,-508.21,0.00016164,2]
[332878575,1721614252721,-500.0,0.00016164,2]
[332878576,1721614252731,-768.59,0.00016164,2]
[332878577,1721614252742,-647.55,0.00016164,2]
[332878578,1721614252755,-500.0,0.00016164,2]
[332878579,1721614252769,-953.2,0.00016164,2]
[332878580,1721614252780,-500.0,0.00016164,2]
[332878581,1721614252793,-874.1,0.00016164,2]
[332878582,1721614252804,-519.25,0.00016164,2]
[332878583,1721614252816,-884.66,0.00016164,2]
[332878584,1721614252827,-1057.52,0.00016164,2]
[332878585,1721614252840,-1889.7,0.00016164,2]
[332878586,1721614252853,-500.0,0.00016164,2]
[332878587,1721614252864,-1132.04,0.00016164,2]
[332878588,1721614252876,-666.49,0.00016164,2]
[332878589,1721614252889,-668.28,0.00016164,2]
[332878590,1721614252902,-500.0,0.00016164,2]
[332878591,1721614252914,-500.0,0.00016164,2]
[332878592,1721614252925,-1624.09,0.00016164,2]
[332878593,1721614252936,-976.27,0.00016164,2]
[332878594,1721614252947,-642.19,0.00016164,2]
[332878595,1721614252959,-552.84,0.00016164,2]
[332878596,1721614252970,-837.86,0.00016164,2]
[332878597,1721614252981,-500.0,0.00016164,2]
[332878598,1721614252992,-838.14,0.00016164,2]
[332878599,1721614253002,-500.0,0.00016164,2]
[332878600,1721614253011,-2035.58,0.00016164,2]
[332878601,1721614253022,-554.09,0.00016164,2]
[332878602,1721614253031,-500.0,0.00016164,2]
[332878603,1721614253040,-1328.22,0.00016164,2]
[332878604,1721614253050,-500.0,0.00016164,2]
[332878605,1721614253060,-500.0,0.00016164,2]
[332878606,1721614253070,-506.13,0.00016164,2]
[332878607,1721614253082,-1470.26,0.00016164,2]
[332878608,1721614253091,-2054.5,0.00016164,2]
[332878609,1721614253102,-568.49348307,0.00016164,2]
[332878610,1721614253112,-628.44,0.00016164,2]
[332878611,1721614253122,-500.0,0.00016164,2]
[332878612,1721614253132,-500.0,0.00016164,2]
[332878613,1721614253143,-700.9,0.00016164,2]
[332878614,1721614253153,-500.0,0.00016164,2]
[332878615,1721614253164,-500.0,0.00016164,2]
[332878616,1721614253175,-630.92,0.00016164,2]
[332878617,1721614253184,-1078.09,0.00016164,2]
[332878618,1721614253195,-816.07,0.00016164,2]
[332878619,1721614253206,-500.0,0.00016164,2]
[332878620,1721614253214,-627.68,0.00016164,2]
[332878621,1721614253225,-604.38,0.00016164,2]
[332878622,1721614253236,-649.28,0.00016164,2]
[332878623,1721614253245,-2006.04,0.00016164,2]
[332878624,1721614253256,-500.0,0.00016164,2]
[332878625,1721614253267,-500.0,0.00016164,2]
[332878626,1721614253277,-565.27,0.00016164,2]
[332878627,1721614253288,-527.61,0.00016164,2]
[332878628,1721614253298,-500.0,0.00016164,2]
[332878629,1721614253307,-500.0,0.00016164,2]
[332878630,1721614253316,-500.0,0.00016164,2]
[332878631,1721614253327,-666.18,0.00016164,2]
[332878632,1721614253338,-859.08,0.00016164,2]
[332878633,1721614253348,-3069.31,0.00016164,2]
[332878634,1721614253360,-500.0,0.00016164,2]
[332878635,1721614253370,-500.0,0.00016164,2]
[332878636,1721614253380,-1517.82,0.00016164,2]
[332878637,1721614253389,-1176.08,0.00016164,2]
[332878638,1721614253398,-500.0,0.00016164,2]
[332878639,1721614253407,-376.18211338,0.00016164,2]
[332878640,1721614253417,-500.0,0.00016164,2]
[332878641,1721614253427,-500.0,0.00016164,2]
[332878642,1721614253436,-500.0,0.00016164,2]
[332878643,1721614253447,-1445.42,0.00016164,2]
[332878644,1721614253457,-500.0,0.00016164,2]
[332878645,1721614253467,-500.0,0.00016164,2]
[332878646,1721614253783,-771.46,0.00016164,2]
[332878647,1721614253800,-2045.09,0.00016164,2]
[332878648,1721614253812,-500.0,0.00016164,2]
[332878649,1721614253822,-500.0,0.00016164,2]
[332878650,1721614253832,-930.2,0.00016164,2]
[332878651,1721614253842,-500.0,0.00016164,2]
[332878652,1721614253853,-684.13,0.00016164,2]
[332878653,1721614253864,-500.0,0.00016164,2]
[332878654,1721614253874,-687.94,0.00016164,2]
[332878655,1721614253885,-1866.61,0.00016164,2]
[332878656,1721614253896,-1337.16,0.00016164,2]
[332878657,1721614253908,-565.6,0.00016164,2]
[332878658,1721614253920,-561.68,0.00016164,2]
[332878659,1721614253931,-723.1,0.00016164,2]
[332878660,1721614253941,-500.0,0.00016164,2]
[332878661,1721614253951,-1520.82,0.00016164,2]
[332878662,1721614253962,-500.0,0.00016164,2]
[332878663,1721614253971,-1951.93,0.00016164,2]
[332878664,1721614253981,-2114.25,0.00016164,2]
[332878665,1721614253989,-1164.77,0.00016164,2]
[332878666,1721614253998,-500.0,0.00016164,2]
[332878667,1721614254007,-1320.34,0.00016164,2]
[332878668,1721614254019,-744.8,0.00016164,2]
[332878669,1721614254029,-1724.01,0.00016164,2]
[332878670,1721614254039,-500.0,0.00016164,2]
[332878671,1721614254049,-1333.01,0.00016164,2]
[332878672,1721614254061,-500.0,0.00016164,2]
[332878673,1721614254072,-504.86,0.00016164,2]
[332878674,1721614254082,-531.31,0.00016164,2]
[332878675,1721614254091,-2564.77,0.00016164,2]
[332878676,1721614254101,-503.98,0.00016164,2]
[332878677,1721614254109,-1473.72,0.00016164,2]
[332878678,1721614254118,-500.0,0.00016164,2]
[332878679,1721614254127,-579.86,0.00016164,2]
[332878680,1721614254136,-674.71,0.00016164,2]
[332878681,1721614254145,-1005.89,0.00016164,2]
[332878682,1721614254155,-284.69108088,0.00016164,2]
[332878683,1721614254164,-500.0,0.00016164,2]
[332878684,1721614254173,-500.0,0.00016164,2]
[332878685,1721614254183,-5550.3,0.00016164,2]
[332878686,1721614254192,-1341.62,0.00016164,2]
[332878687,1721614254201,-1204.73,0.00016164,2]
[332878688,1721614254211,-12941.36,0.00016164,2]
[332878689,1721614254220,-1907.18,0.00016164,2]
[332878690,1721614254230,-500.0,0.00016164,2]
[332878691,1721614254239,-3689.8,0.00016164,2]
[332878692,1721614254248,-500.0,0.00016164,2]
[332878693,1721614254257,-500.0,0.00016164,2]
[332878694,1721614254267,-1624.15,0.00016164,2]
[332878695,1721614254279,-3041.94,0.00016164,2]
[332878696,1721614254289,-1054.8,0.00016164,2]
[332878697,1721614254299,-2090.47,0.00016164,2]
[332878698,1721614254309,-249.60203785,0.00016164,2]
[332878699,1721614254318,-1806.74,0.00016164,2]
[332878700,1721614254327,-2202.13,0.00016164,2]
[332878701,1721614254336,-500.0,0.00016164,2]
[332878702,1721614254346,-500.0,0.00016164,2]
[332878703,1721614254355,-2213.48,0.00016164,2]
[332878704,1721614254367,-4016.4,0.00016164,2]
[332878705,1721614254377,-500.0,0.00016164,2]
[332878706,1721614254388,-500.0,0.00016164,2]
[332878707,1721614254397,-500.0,0.00016164,2]
[332878708,1721614254408,-2197.7,0.00016164,2]
[332878709,1721614254417,-992.27023327,0.00016164,2]
[332878721,1721615322292,764.55589968,0.00024,60]
[332878775,1721615432542,-300.0,9.998e-05,2]
[332878777,1721615432551,-778.8042113,9.999e-05,2]
[332878779,1721615432561,-37.82530905,9.999e-05,2]
[332878786,1721615438508,-118.73514961,9.999e-05,2]
[332878787,1721615438518,-188.02900327,9.999e-05,2]
[332878788,1721615438528,-189.11687784,9.999e-05,2]
[332878789,1721615438538,-413.45473308,9.999e-05,2]
[332878790,1721615438548,-404.3074502,9.999e-05,2]
[332878791,1721615438557,-186.21736128,9.999e-05,2]
[332878792,1721615438566,-519.01388481,9.999e-05,2]
[332878793,1721615438576,-531.29167136,9.999e-05,2]
[332878794,1721615438585,-208.54118651,9.999e-05,2]
[332878795,1721615438595,-209.21027021,9.999e-05,2]
[332878796,1721615438604,-259.77472427,9.999e-05,2]
[332878797,1721615438614,-156.91519169,9.999e-05,2]
[332878798,1721615438623,-756.64267172,9.999e-05,2]
[332878799,1721615438635,-154.80649189,0.0001,2]
[332878800,1721615438644,-183.14,0.00010959,2]
[332878801,1721615438653,-152.61,0.00010959,2]
[332878802,1721615438663,-763.09,0.00010959,2]
[332878803,1721615438672,-420.0,0.00010998,2]
[332878804,1721615438682,-8529.189717,0.00011762,2]
[332878808,1721615440699,-16370.810283,0.00011762,2]
[332878809,1721615440709,-587.0,0.00012098,2]
[332878810,1721615440718,-237.3466359,0.00012766,2]
[332878811,1721615440728,-1032.0754591,0.000129,2]
[332878814,1721615440740,-1199.52493808,0.000129,2]
[332878816,1721615440758,-2231.60039716,0.00013257,2]
[332878819,1721615440769,-531.0,0.00013307,2]
[332878820,1721615440779,-1000.6764912,0.00013598,2]
[332878821,1721615440788,-406757.218315,0.00013678,2]
[332878822,1721615440797,-511.14918565,0.00013698,2]
[332878823,1721615440807,-500.0,0.00013698,2]
[332878824,1721615440817,-500.0,0.00013698,2]
[332878825,1721615440827,-500.0,0.00013698,2]
[332878826,1721615440836,-500.0,0.00013698,2]
[332878827,1721615440847,-500.0,0.00013698,2]
[332878828,1721615440856,-500.0,0.00013698,2]
[332878829,1721615440866,-500.0,0.00013698,2]
[332878830,1721615440876,-500.0,0.00013698,2]
[332878831,1721615440886,-232.33119763,0.00013698,2]
[332878832,1721615440896,-500.0,0.00013698,2]
[332878833,1721615440905,-506.11841399,0.00013698,2]
[332878834,1721615440915,-594.07160015,0.00013698,2]
[332878835,1721615440926,-500.0,0.00013698,2]
[332878836,1721615440937,-500.0,0.00013698,2]
[332878837,1721615440947,-503.94716429,0.00013698,2]
[332878838,1721615440957,-500.0,0.00013698,2]
[332878839,1721615440966,-500.0,0.00013698,2]
[332878840,1721615440976,-500.0,0.00013698,2]
[332878841,1721615440986,-500.0,0.00013698,2]
[332878842,1721615440997,-500.0,0.00013698,2]
[332878843,1721615441008,-374.15193267,0.00013698,2]
[332878844,1721615441018,-500.0,0.00013698,2]
[332878845,1721615441028,-500.0,0.00013698,2]
[332878846,1721615441039,-500.0,0.00013698,2]
[332878847,1721615441048,-506.16326635,0.00013698,2]
[332878848,1721615441058,-500.0,0.00013698,2]
[332878849,1721615441067,-504.28377671,0.00013698,2]
[332878850,1721615441077,-506.51256414,0.00013698,2]
[332878851,1721615441087,-500.0,0.00013698,2]
[332878852,1721615441096,-442.32467591,0.00013698,2]
[332878853,1721615441106,-800.27,0.00013698,2]
[332878854,1721615441115,-800.27,0.00013698,2]
[332878855,1721615441125,-800.27,0.00013698,2]
[332878856,1721615441135,-800.27,0.00013698,2]
[332878857,1721615441146,-800.27,0.00013698,2]
[332878858,1721615441156,-800.27,0.00013698,2]
[332878859,1721615441166,-800.27,0.00013698,2]
[332878860,1721615441176,-800.27,0.00013698,2]
[332878861,1721615441187,-800.27,0.00013698,2]
[332878862,1721615441198,-500.0,0.00013698,2]
[332878863,1721615441207,-800.27,0.00013698,2]
[332878864,1721615441217,-800.27,0.00013698,2]
[332878865,1721615441226,-800.27,0.00013698,2]
[332878866,1721615441236,-800.27,0.00013698,2]
[332878867,1721615441245,-800.27,0.00013698,2]
[332878868,1721615441254,-800.27,0.00013698,2]
[332878869,1721615441264,-800.27,0.00013698,2]
[332878870,1721615441274,-800.27,0.00013698,2]
[332878871,1721615441284,-800.27,0.00013698,2]
[332878872,1721615441295,-800.27,0.00013698,2]
[332878873,1721615441304,-1523.47,0.00013698,2]
[332878874,1721615441314,-800.27,0.00013698,2]
[332878875,1721615441324,-800.27,0.00013698,2]
[332878876,1721615441333,-800.27,0.00013698,2]
[332878877,1721615441343,-800.27,0.00013698,2]
[332878878,1721615441354,-800.40094083,0.00013698,2]
[332878879,1721615441363,-500.0,0.00013698,2]
[332878880,1721615441374,-640.09039261,0.00013698,2]
[332878881,1721615441384,-500.0,0.00013698,2]
[332878882,1721615441394,-353.08218069,0.00013698,2]
[332878883,1721615441403,-202.55632502,0.00013698,2]
[332878884,1721615441413,-500.0,0.00013698,2]
[332878885,1721615441423,-500.0,0.00013698,2]
[332878886,1721615441432,-500.0,0.00013698,2]
[332878887,1721615441445,-500.0,0.00013698,2]
[332878888,1721615441457,-500.0,0.00013698,2]
[332878889,1721615441467,-500.0,0.00013698,2]
[332878890,1721615441478,-500.0,0.00013698,2]
[332878891,1721615441488,-500.0,0.00013698,2]
[332878892,1721615441498,-349.1682991,0.00013698,2]
[332878893,1721615441511,-500.0,0.00013698,2]
[332878894,1721615441522,-500.0,0.00013698,2]
[332878895,1721615441532,-500.0,0.00013698,2]
[332878896,1721615441542,-500.0,0.00013698,2]
[332878897,1721615441552,-503.48151961,0.00013698,2]
[332878898,1721615441562,-500.0,0.00013698,2]
[332878899,1721615441574,-500.0,0.00013698,2]
[332878900,1721615441584,-500.0,0.00013698,2]
[332878901,1721615441594,-500.0,0.00013698,2]
[332878902,1721615441607,-500.0,0.00013698,2]
[332878903,1721615441617,-500.0,0.00013698,2]
[332878904,1721615441626,-503.02447703,0.00013698,2]
[332878905,1721615441635,-224.51156347,0.00013698,2]
[332878906,1721615441645,-500.0,0.00013698,2]
[332878907,1721615441654,-500.0,0.00013698,2]
[332878908,1721615441663,-500.0,0.00013698,2]
[332878909,1721615441673,-500.0,0.00013698,2]
[332878910,1721615441683,-500.0,0.00013698,2]
[332878911,1721615441696,-500.0,0.00013698,2]
[332878912,1721615441707,-503.8121749,0.00013698,2]
[332878913,1721615441718,-500.0,0.00013698,2]
[332878914,1721615441728,-500.0,0.00013698,2]
[332878915,1721615441737,-500.0,0.00013698,2]
[332878916,1721615441747,-915.74,0.00013698,2]
[332878917,1721615441757,-518.26231982,0.00013698,2]
[332878918,1721615441768,-500.0,0.00013698,2]
[332878919,1721615441777,-500.0,0.00013698,2]
[332878920,1721615441787,-613.50607496,0.00013698,2]
[332878921,1721615441796,-412.15783446,0.00013698,2]
[332878922,1721615441807,-500.0,0.00013698,2]
[332878923,1721615441816,-500.0,0.00013698,2]
[332878924,1721615441827,-500.0,0.00013698,2]
[332878925,1721615441838,-500.0,0.00013698,2]
[332878926,1721615441848,-500.0,0.00013698,2]
[332878927,1721615441857,-724.15,0.00013698,2]
[332878928,1721615441867,-724.15,0.00013698,2]
[332878929,1721615441878,-724.15,0.00013698,2]
[332878930,1721615441888,-724.15,0.00013698,2]
[332878931,1721615441898,-724.15,0.00013698,2]
[332878932,1721615441907,-509.54338405,0.00013698,2]
[332878933,1721615441917,-724.15,0.00013698,2]
[332878934,1721615441927,-724.15,0.00013698,2]
[332878935,1721615441939,-724.15,0.00013698,2]
[332878936,1721615441948,-724.15,0.00013698,2]
[332878937,1721615441959,-724.15,0.00013698,2]
[332878938,1721615441970,-724.15,0.00013698,2]
[332878939,1721615441979,-500.0,0.00013698,2]
[332878940,1721615441990,-724.15,0.00013698,2]
[332878941,1721615442003,-724.15,0.00013698,2]
[332878942,1721615442012,-724.15,0.00013698,2]
[332878943,1721615442022,-724.15,0.00013698,2]
[332878944,1721615442032,-724.15,0.00013698,2]
[332878945,1721615442042,-724.15,0.00013698,2]
[332878946,1721615442052,-724.15,0.00013698,2]
[332878947,1721615442063,-724.15,0.00013698,2]
[332878948,1721615442073,-724.15,0.00013698,2]
[332878949,1721615442083,-500.0,0.00013698,2]
[332878950,1721615442092,-724.15,0.00013698,2]
[332878951,1721615442103,-724.15,0.00013698,2]
[332878952,1721615442113,-248.33983644,0.00013698,2]
[332878953,1721615442122,-724.15,0.00013698,2]
[332878954,1721615442132,-724.32514018,0.00013698,2]
[332878955,1721615442144,-500.0,0.00013698,2]
[332878956,1721615442154,-500.0,0.00013698,2]
[332878957,1721615442165,-500.0,0.00013698,2]
[332878958,1721615442174,-500.0,0.00013698,2]
[332878959,1721615442184,-504.85668131,0.00013698,2]
[332878960,1721615442196,-500.0,0.00013698,2]
[332878961,1721615442206,-500.0,0.00013698,2]
[332878962,1721615442216,-500.0,0.00013698,2]
[332878963,1721615442226,-500.89573504,0.00013698,2]
[332878964,1721615442235,-500.0,0.00013698,2]
[332878965,1721615442244,-500.0,0.00013698,2]
[332878966,1721615442254,-500.0,0.00013698,2]
[332878967,1721615442263,-500.0,0.00013698,2]
[332878968,1721615442273,-500.0,0.00013698,2]
[332878969,1721615442282,-319.33455858,0.00013698,2]
[332878970,1721615442291,-505.18994287,0.00013698,2]
[332878971,1721615442301,-500.0,0.00013698,2]
[332878972,1721615442310,-500.0,0.00013698,2]
[332878973,1721615442319,-500.0,0.00013698,2]
[332878974,1721615442329,-500.0,0.00013698,2]
[332878975,1721615442338,-500.0,0.00013698,2]
[332878976,1721615442348,-500.0,0.00013698,2]
[332878977,1721615442357,-649.40005782,0.00013698,2]
[332878978,1721615442366,-500.0,0.00013698,2]
[332878979,1721615442376,-504.98413447,0.00013698,2]
[332878980,1721615442385,-500.0,0.00013698,2]
[332878981,1721615442394,-500.0,0.00013698,2]
[332878982,1721615442403,-539.7465234,0.00013698,2]
[332878983,1721615442412,-1169.38,0.00013698,2]
[332878984,1721615442422,-500.0,0.00013698,2]
[332878985,1721615442432,-500.0,0.00013698,2]
[332878986,1721615442442,-500.0,0.00013698,2]
[332878987,1721615442452,-500.89620177,0.00013698,2]
[332878988,1721615442461,-500.0,0.00013698,2]
[332878989,1721615442471,-500.0,0.00013698,2]
[332878990,1721615442480,-500.0,0.00013698,2]
[332878991,1721615442726,-500.0,0.00013698,2]
[332878992,1721615442737,-500.0,0.00013698,2]
[332878993,1721615442747,-500.0,0.00013698,2]
[332878994,1721615442756,-506.22761474,0.00013698,2]
[332878995,1721615442766,-500.0,0.00013698,2]
[332878996,1721615442776,-186.19333093,0.00013698,2]
[332878997,1721615442786,-500.0,0.00013698,2]
[332878998,1721615442795,-500.0,0.00013698,2]
[332878999,1721615442805,-500.0,0.00013698,2]
[332879000,1721615442814,-500.0,0.00013698,2]
[332879001,1721615442824,-500.0,0.00013698,2]
[332879003,1721615442833,-500.0,0.00013698,2]
[332879005,1721615442843,-505.85316634,0.00013698,2]
[332879007,1721615442852,-185.50399782,0.00013698,2]
[332879010,1721615442862,-500.0,0.00013698,2]
[332879013,1721615442872,-500.0,0.00013698,2]
[332879015,1721615442881,-501.99577457,0.00013698,2]
[332879017,1721615442890,-500.0,0.00013698,2]
[332879018,1721615442900,-500.0,0.00013698,2]
[332879019,1721615442910,-154.00147731,0.00013698,2]
[332879020,1721615442920,-183.38236378,0.00013698,2]
[332879021,1721615442931,-500.0,0.00013698,2]
[332879022,1721615442943,-500.0,0.00013698,2]
[332879023,1721615442953,-500.0,0.00013698,2]
[332879024,1721615442962,-503.24673825,0.00013698,2]
[332879025,1721615442973,-503.89243339,0.00013698,2]
[332879028,1721615442983,-502.51157685,0.00013698,2]
[332879044,1721615443204,-500.0,0.00013698,2]
[332879045,1721615443215,-500.0,0.00013698,2]
[332879046,1721615443224,-500.0,0.00013698,2]
[332879047,1721615443235,-502.88470535,0.00013698,2]
[332879049,1721615443246,-500.0,0.00013698,2]
[332879051,1721615443256,-500.0,0.00013698,2]
[332879052,1721615443266,-500.0,0.00013698,2]
[332879053,1721615443276,-500.0,0.00013698,2]
[332879054,1721615443285,-503.03252469,0.00013698,2]
[332879055,1721615443295,-500.0,0.00013698,2]
[332879056,1721615443304,-506.6641191,0.00013698,2]
[332879057,1721615443313,-500.0,0.00013698,2]
[332879058,1721615443322,-500.0,0.00013698,2]
[332879059,1721615443332,-500.0,0.00013698,2]
[332879060,1721615443341,-500.0,0.00013698,2]
[332879061,1721615443351,-500.0,0.00013698,2]
[332879062,1721615443360,-500.0,0.00013698,2]
[332879063,1721615443371,-500.0,0.00013698,2]
[332879064,1721615443384,-282.81910119,0.00013698,2]
[332879065,1721615443394,-500.0,0.00013698,2]
[332879066,1721615443403,-500.0,0.00013698,2]
[332879067,1721615443416,-505.7885831,0.00013698,2]
[332879068,1721615443425,-500.0,0.00013698,2]
[332879069,1721615443437,-500.0,0.00013698,2]
[332879070,1721615443452,-500.0,0.00013698,2]
[332879071,1721615443461,-500.0,0.00013698,2]
[332879072,1721615443470,-500.0,0.00013698,2]
[332879073,1721615443481,-634.47584188,0.00013698,2]
[332879074,1721615443491,-504.31067322,0.00013698,2]
[332879075,1721615443501,-509.79821889,0.00013698,2]
[332879076,1721615443511,-502.22503493,0.00013698,2]
[332879077,1721615443522,-514.18858457,0.00013698,2]
[332879078,1721615443532,-500.0,0.00013698,2]
[332879079,1721615443542,-503.18886382,0.00013698,2]
[332879080,1721615443551,-505.74011897,0.00013698,2]
[332879081,1721615443563,-500.0,0.00013698,2]
[332879082,1721615443573,-500.0,0.00013698,2]
[332879083,1721615443584,-591.06616635,0.00013698,2]
[332879084,1721615443595,-503.32530299,0.00013698,2]
[332879085,1721615443604,-500.0,0.00013698,2]
[332879086,1721615443616,-500.0,0.00013698,2]
[332879087,1721615443626,-500.0,0.00013698,2]
[332879088,1721615443636,-503.54918777,0.00013698,2]
[332879089,1721615443646,-507.91651285,0.00013698,2]
[332879090,1721615443656,-500.0,0.00013698,2]
[332879091,1721615443668,-500.0,0.00013698,2]
[332879092,1721615443677,-312.62125749,0.00013698,2]
[332879093,1721615443688,-500.0,0.00013698,2]
[332879094,1721615443698,-500.0,0.00013698,2]
[332879095,1721615443709,-500.0,0.00013698,2]
[332879096,1721615443719,-500.0,0.00013698,2]
[332879097,1721615443728,-500.0,0.00013698,2]
[332879099,1721615443738,-500.0,0.00013698,2]
[332879101,1721615443747,-505.86525202,0.00013698,2]